Cogmind - Beta 9 @@@ ROGUE MODE // 2019.10.24 @ 00:27:41 Player: Mr.Manatee Result: Self-destructed Performance ------------- Evolutions (2) 1000 Regions Visited (5) 1000 Robots Destroyed (30) 150 Value Destroyed (740) 740 Prototype IDs (5) 100 Alien Tech Used (0) 0 Bonus (68) 68 TOTAL SCORE: 3058 Bonus ------- Follower Combat Kills 68 Cogmind --------- Core Integrity 447/550 Matter 300/300 Energy 310/310 System Corruption 0% Temperature Cool (-100) Location -8/Storage Parts ------- Power (2) Ion Engine Light Nuclear Core Propulsion (3) Armored Wheel Armored Wheel Armored Wheel Utility (4) Cryofiber Web Medium Storage Unit Improved Weapon Shielding Weapon (2) Beam Rifle Minigun Inventory (8) Ion Engine Ion Engine Ion Engine Heat Sink Peak State ------------ Power Ion Engine Light Nuclear Core Propulsion Armored Wheel Armored Wheel Armored Wheel Utility Cryofiber Web Medium Storage Unit Propulsion Shielding Improved Weapon Shielding Weapon Beam Rifle Spear Inventory Ion Engine Ion Engine Ion Engine Armored Wheel Heat Sink [Rating: 24] Favorites ----------- Power Ion Engine Engine Ion Engine Power Core Light Nuclear Core Propulsion Armored Wheel Wheel Armored Wheel Utility Small Storage Unit Device Improved Heat Sink Storage Small Storage Unit Protection Propulsion Shielding Weapon Light EM Pulse Cannon Energy Gun Beam Rifle Energy Cannon Light EM Pulse Cannon Ballistic Gun Minigun Piercing Weapon Spear Build | -11 -10 -10 -9 -8 -8 ------- Run | Scr Mat Min Mat Mat Sto Slots Evolved 4 | . . . 2 2 . Power 1 | . . . . 1 . Propulsion 1 | . . . . 1 . Utility 2 | . . . 2 . . Weapon . | . . . . . . Parts Attached 38 | 6 4 3 8 9 8 Power 6 | 1 . . 2 2 1 Engine 5 | 1 . . 2 1 1 Core 1 | . . . . 1 . Reactor . | . . . . . . Propulsion 11 | 2 2 . 2 1 4 Treads . | . . . . . . Leg . | . . . . . . Wheel 11 | 2 2 . 2 1 4 Hover . | . . . . . . Flight . | . . . . . . Utility 7 | 1 . 1 2 3 . Device 3 | . . 1 1 1 . Storage 2 | 1 . . . 1 . Processor . | . . . . . . Hackware . | . . . . . . Protection 2 | . . . 1 1 . Artifact . | . . . . . . Weapon 14 | 2 2 2 2 3 3 Energy Gun 5 | 2 . . . 1 2 Energy Cannon 6 | . 2 2 2 . . Ballistic Gun 1 | . . . . . 1 Ballistic Cannon . | . . . . . . Launcher . | . . . . . . Special Weapon . | . . . . . . Impact Weapon . | . . . . . . Slashing Weapon . | . . . . . . Piercing Weapon 2 | . . . . 2 . Special Melee Weapon . | . . . . . . Unidentified Prototypes . | . . . . . . Parts Lost 5 | . . 2 1 . 2 Power . | . . . . . . Propulsion 1 | . . . . . 1 Utility 1 | . . . . . 1 Weapon 3 | . . 2 1 . . Highest Loss Streak 2 | . . 2 1 . 1 Average Slot Usage (%) 90 | . 80 92 88 98 91 Engine 11 | . 14 14 10 13 8 Core 2 | . . . . 4 9 Wheel 23 | . 26 28 20 27 24 Device 13 | . . 9 16 13 9 Storage 10 | . 14 14 11 9 9 Protection 8 | . . . 8 12 13 Energy Gun 3 | . 5 . . 9 9 Energy Cannon 14 | . 19 25 20 . . Ballistic Gun 1 | . . . . . 7 Piercing Weapon 1 | . . . . 8 1 Naked Turns . | . . . . . . Heaviest Build 28 | 12 17 18 20 28 28 Greatest Support 36 | 20 24 24 24 36 36 Greatest Overweight (x) 2 | . . . . . 2 Average Overweight (x) . | . . . . . . Largest Inventory Capacity 8 | 6 6 6 6 8 8 Average Capacity 6 | 5 6 6 6 7 8 Most Carried 6 | 4 6 6 6 6 6 Average Carried 4 | 2 5 4 4 4 4 Final Capacity 8 | . . . . . 8 Final Carried 4 | . . . . . 4 Class Distribution -------------------- 93% | Mutant 6% | Commander-Mutant Dominant Class ---------------- Mutant | -10/Materials Mutant | -10/Mines Mutant | -9/Materials Mutant | -8/Materials Mutant | -8/Storage Resources | -11 -10 -10 -9 -8 -8 ----------- Run | Scr Mat Min Mat Mat Sto Matter Collected 634 | 227 73 25 80 90 139 Remotely . | . . . . . . Salvage Created 1244 | . 184 105 498 173 284 Parts 75 | . 15 3 32 10 15 Haulers Intercepted 1 | . . . . . 1 Recyclers Shooed . | . . . . . . Parts Field Recycled . | . . . . . . Retrieved Matter . | . . . . . . Parts Self-Destructed . | . . . . . . Prevented . | . . . . . . Kills | -11 -10 -10 -9 -8 -8 ------- Run | Scr Mat Min Mat Mat Sto Combat Hostiles Destroyed 22 | . 5 2 10 3 2 Melee 3 | . . . . 3 . Guns 2 | . . . . . 2 Cannons 13 | . 2 1 10 . . AOE 4 | . 3 1 . . . Classes Destroyed 7 | . 3 . 2 1 1 Worker 2 | . . . . 1 1 Hauler 1 | . . . . . 1 Recycler 4 | . 1 . 2 . 1 Mechanic 1 | . . . 1 . . Swarmer 8 | . 3 . 5 . . Grunt 7 | . 2 2 2 1 . Sentry 7 | . . . 3 2 2 Best Kill Streak 5 | . 5 2 5 2 2 Combat Bots Only 4 | . 4 2 3 1 1 Max Kills in Single Turn 2 | . 2 1 2 1 1 Gunslinging . | . . . . . . Exploded 2 | . 2 1 . . . Melee 1 | . . . . 1 . Uniques/NPCs Destroyed . | . . . . . . Combat | -11 -10 -10 -9 -8 -8 -------- Run | Scr Mat Min Mat Mat Sto Damage Taken 1105 | . 202 151 421 136 195 Core 256 | . 45 12 96 43 60 Absorbed by Shields . | . . . . . . Core Remaining (%) 84 | 100 . 77 76 . . Volleys Fired 50 | . 6 6 22 . 16 Largest 2 | . 2 2 2 . 2 Hottest 112 | . 112 112 112 . 81 Shots Fired 98 | . 12 10 44 . 32 Gun 32 | . . . . . 32 Cannon 66 | . 12 10 44 . . Launcher . | . . . . . . Special . | . . . . . . Kinetic 16 | . . . . . 16 Thermal 16 | . . . . . 16 Explosive . | . . . . . . Electromagnetic 66 | . 12 10 44 . . Robot Hit Streak 9 | . 5 7 6 . 9 Robot Miss Streak 2 | . 1 1 2 . 2 Penetration Max . | . . . . . . Secondary Targets . | . . . . . . Shots Hit Robots 67 | . 9 8 23 5 22 Core Hits 39 | . 6 3 15 4 11 Critical Hits . | . . . . . . Critical Kills . | . . . . . . Critical Parts Destroyed . | . . . . . . Melee Attacks 7 | . . . . 7 . Impact . | . . . . . . Slashing . | . . . . . . Piercing 7 | . . . . 7 . Sneak Attacks 1 | . . . . 1 . Combat Hostiles . | . . . . . . Follow-up Attacks . | . . . . . . Damage Inflicted 1760 | . 286 199 654 223 398 Guns 398 | . . . . . 398 Cannons 857 | . 194 161 502 . . Explosions 282 | . 92 38 152 . . Melee 223 | . . . . 223 . Ramming . | . . . . . . Kinetic 182 | . . . . . 182 Thermal 495 | . 92 38 149 . 216 Explosive . | . . . . . . Electromagnetic 860 | . 194 161 505 . . Impact . | . . . . . . Slashing . | . . . . . . Piercing 223 | . . . . 223 . Highest Corruption . | . . . . . . Average Corruption . | . . . . . . Corruption Purged . | . . . . . . Overload Shots . | . . . . . . Overflow Damage 11 | . . . 11 . . Projectiles 8 | . . . 8 . . Explosions 3 | . . . 3 . . Melee . | . . . . . . Knockbacks . | . . . . . . Impact . | . . . . . . Kinetic . | . . . . . . Secondary . | . . . . . . Self-Inflicted Damage 74 | . 36 38 . . . Shots 2 | . 1 1 . . . Rammed . | . . . . . . Targets Rammed . | . . . . . . Kicked . | . . . . . . Crushed . | . . . . . . Highest Temperature 241 | . 120 241 27 . 76 Average Temperature 76 | . 56 134 12 . 31 Received Heat Transfer 396 | . 60 63 138 72 63 Siege Activations . | . . . . . . Robots Corrupted . | . . . . . . Combat Hostiles . | . . . . . . Parts Fried 2 | . . 1 1 . . Impact Corruptions . | . . . . . . Robots Melted . | . . . . . . Combat Hostiles . | . . . . . . Parts Melted . | . . . . . . Heat Transferred 805 | . 150 . 100 . 555 Parts Sabotaged . | . . . . . . Parts Stolen . | . . . . . . Parts Stripped . | . . . . . . Power Chain Reactions 3 | . 2 1 . . . Missiles Intercepted . | . . . . . . Alert | -11 -10 -10 -9 -8 -8 ------- Run | Scr Mat Min Mat Mat Sto Peak Influence 338 | . 150 88 258 253 338 Average Influence 125 | . 66 83 123 155 183 Maximum Alert Level 1 | . . . 1 1 1 Low Security (%) 82 | . . . . . . Level 1 17 | . . . . . . Level 2 . | . . . . . . Level 3 . | . . . . . . Level 4 . | . . . . . . Level 5 . | . . . . . . High Security . | . . . . . . Max Security . | . . . . . . Squads Dispatched 6 | . 2 . 1 1 2 Investigation 2 | . 1 . 1 . . Extermination . | . . . . . . Reinforcement 4 | . 1 . . 1 2 Assault . | . . . . . . Garrison . | . . . . . . Intercept . | . . . . . . Construction Impeded . | . . . . . . Haulers Reinforced . | . . . . . . Stealth | -11 -10 -10 -9 -8 -8 --------- Run | Scr Mat Min Mat Mat Sto Distress Signals 3 | . 1 . 1 . 1 Communications Jammed . | . . . . . . Distress Signals . | . . . . . . Times Spotted 50 | . 9 2 24 7 8 Peak Tracking Total 7 | . 7 2 6 3 4 Tactical Retreats 4 | . . . 4 . . Traps | -11 -10 -10 -9 -8 -8 ------- Run | Scr Mat Min Mat Mat Sto Traps Triggered 3 | . . . . . 3 Indirectly . | . . . . . . Trap Hack Attempts . | . . . . . . Triggered . | . . . . . . Disarmed . | . . . . . . Reprogrammed . | . . . . . . Reused . | . . . . . . Traps Extracted . | . . . . . . Installed . | . . . . . . Triggered . | . . . . . . Machines | -11 -10 -10 -9 -8 -8 ---------- Run | Scr Mat Min Mat Mat Sto Machines Disabled 4 | . . . 4 . . Max in Single Turn 3 | . . . 3 . . Machines Sabotaged . | . . . . . . Garrisons Compromised . | . . . . . . Overloaded Fab Kills . | . . . . . . Fab Network Shutdowns . | . . . . . . Hacking | -11 -10 -10 -9 -8 -8 --------- Run | Scr Mat Min Mat Mat Sto Machines Accessed 9 | . 1 . 4 3 1 Terminals 4 | . 1 . 1 1 1 Fabricators . | . . . . . . Repair Stations 2 | . . . 2 . . Recycling Units . | . . . . . . Scanalyzers 3 | . . . 1 2 . Garrison Access . | . . . . . . Total Hacks 32 | . 1 . 21 9 1 Successful 25 | . 1 . 17 6 1 Failed 7 | . . . 4 3 . Catastrophic . | . . . . . . Database Lockouts . | . . . . . . Manual 4 | . 2 . 2 . . Terminals 8 | . 1 . 4 2 1 Fabricators . | . . . . . . Repair Stations 11 | . . . 11 . . Recycling Units . | . . . . . . Scanalyzers 13 | . . . 6 7 . Garrison Access . | . . . . . . Terminal Hacks 2 | . . . 1 . 1 Prototype ID Bank 2 | . . . 1 . 1 Fabricator Hacks . | . . . . . . Repair Station Hacks 10 | . . . 10 . . Scan Component 5 | . . . 5 . . Repair 5 | . . . 5 . . Recycling Unit Hacks . | . . . . . . Scanalyzer 12 | . . . 6 6 . Insert Component 6 | . . . 3 3 . Analyze 6 | . . . 3 3 . Garrison Access Hacks . | . . . . . . Unauthorized Hacks 2 | . 2 . . . . Terminals 1 | . 1 . . . . Sabotage 1 | . 1 . . . . Fabricators . | . . . . . . Repair Stations . | . . . . . . Recycling Units . | . . . . . . Scanalyzers . | . . . . . . Garrison Access . | . . . . . . Data Cores Recovered . | . . . . . . Used . | . . . . . . Hacking Detections 5 | . 1 . 2 1 1 Full Trace Events 1 | . . . 1 . . Feedback Events . | . . . . . . Feedback Blocked . | . . . . . . Robot Schematics Acquired . | . . . . . . Robots Built . | . . . . . . Matter . | . . . . . . Time . | . . . . . . Total Robot Build Rating . | . . . . . . Part Schematics Acquired 6 | . . . 3 3 . Parts Built . | . . . . . . Matter . | . . . . . . Time . | . . . . . . Total Part Build Rating . | . . . . . . Parts Repaired 5 | . . . 5 . . Time 154 | . . . 154 . . Parts Recycled . | . . . . . . Recycled Matter . | . . . . . . Retrieved Matter . | . . . . . . Retrieved Components . | . . . . . . Parts Scanalyzed 6 | . . . 3 3 . Part Schematics Acquired 6 | . . . 3 3 . Parts Damaged 1 | . . . . 1 . Bothacking | -11 -10 -10 -9 -8 -8 ------------ Run | Scr Mat Min Mat Mat Sto Used RIF Installer . | . . . . . . Robots Hacked . | . . . . . . Non-combat . | . . . . . . Combat . | . . . . . . Robot Hacks Applied . | . . . . . . Relay Couplers Released . | . . . . . . Robots Rewired . | . . . . . . Allies Hacked . | . . . . . . Hacks Repelled . | . . . . . . Allies | -11 -10 -10 -9 -8 -8 -------- Run | Scr Mat Min Mat Mat Sto Total Allies 10 | . . . . . 10 Largest Group 10 | . . . . . 10 Highest-Rated Group 173 | . . . . . 173 Highest-Rated Ally 29 | . . . . . 29 Total Orders . | . . . . . . Ally Attacks 20 | . . . . . 20 Total Damage 277 | . . . . . 277 Kills 3 | . . . . . 3 Allies Corrupted . | . . . . . . Allies Melted . | . . . . . . Intel | -11 -10 -10 -9 -8 -8 ------- Run | Scr Mat Min Mat Mat Sto Robot Analysis Total . | . . . . . . Derelict Logs Recovered 2 | . . 2 . . . Drone Launches . | . . . . . . Drone Recoveries . | . . . . . . Exploration | -11 -10 -10 -9 -8 -8 ------------- Run | Scr Mat Min Mat Mat Sto Turns Passed 1282 | 56 100 102 613 209 202 Spaces Moved 933 | 47 73 89 369 194 161 Core 2 | 2 . . . . . Treads . | . . . . . . Legs . | . . . . . . Wheels 931 | 45 73 89 369 194 161 Hover . | . . . . . . Flight . | . . . . . . Fastest Speed 50 | 50 80 90 90 90 90 Average Speed 89 | 78 88 90 90 90 90 Slowest Speed 110 | 80 90 90 90 90 110 Overloaded Moves . | . . . . . . Propulsion Burnouts . | . . . . . . Robots Hopped . | . . . . . . Cave-ins Triggered . | . . . . . . Exploration Rate (%) 22 | 3 18 26 42 18 25 Regions Visited 5 Branch Regions 2 Pre-discovered Areas 1 | . . 1 . . . Known Exits Taken . | . . . . . . Unknown Exits Taken 5 | 1 1 1 1 1 . Scrap Searched . | . . . . . . Spaces Dug . | . . . . . . Terrain Destroyed 38 | . 5 5 28 . . Melee . | . . . . . . Projectile . | . . . . . . AOE 38 | . 5 5 28 . . Actions | -11 -10 -10 -9 -8 -8 --------- Run | Scr Mat Min Mat Mat Sto Total 1264 | 62 97 100 602 218 185 Wait 211 | 6 3 3 199 . . Move 928 | 46 72 88 368 193 161 Hop . | . . . . . . Pick Up 14 | 4 5 . 3 2 . Fast Attach 28 | 6 4 1 7 4 6 Attach 8 | . . 2 . 4 2 Detach 3 | . . . . 3 . Swap 2 | . . . 1 1 . Drop 13 | . 7 . 2 4 . Fire 50 | . 6 6 22 . 16 Melee 7 | . . . . 7 . Ram . | . . . . . . Kick . | . . . . . . Crush . | . . . . . . Escape Stasis . | . . . . . . Rewire . | . . . . . . Trap . | . . . . . . Miscellaneous . | . . . . . . Route ------- -11/Scrapyard -10/Materials -10/Mines -9/Materials -8/Materials -8/Storage History --------- Turn | Location | Event 10 | -11/Scrapyard | Discovered new exit (range 15) 57 | -11/Scrapyard | Entered Materials 136 | -10/Materials | Discovered new exit (range 7) 157 | -10/Materials | Entered Mines 203 | -10/Mines | Learned Materials emergency access door positions 243 | -10/Mines | Discovered new exit (range 8) 254 | -10/Mines | Learned location of Zion (-7) 259 | -10/Mines | Entered Materials 259 | -9/Materials | Evolved 2 slots: Utility x2 300 | -9/Materials | Repaired Ion Engine 321 | -9/Materials | Build established: Mutant 333 | -9/Materials | Repaired Lgt. EM Pulse Cannon 472 | -9/Materials | Repaired Lgt. EM Pulse Cannon 506 | -9/Materials | Repaired Arm. Wheel 539 | -9/Materials | Repaired Arm. Wheel 868 | -9/Materials | Discovered new exit (range 3) 872 | -9/Materials | Entered another Materials area 872 | -8/Materials | Evolved 2 slots: Power x1, Propulsion x1 1058 | -8/Materials | Discovered new exit (range 6) 1081 | -8/Materials | Entered Storage 1199 | -8/Storage | Assisted by bots powering up and referring to "LRC-V3" 1283 | -8/Storage | Self-destructed Last Messages --------------- 01210_ K-01 Serf collects debris. 01223_ Y-45 Defender destroyed. 01224_ K-01 Serf destroyed. 01229_ A-02 Transporter destroyed. 01235_ K-01 Serf collects debris. 01244_ Acquired 16 matter. 01247_ Connecting with Terminal... 01247_ Current location identified: Storage 01263_ K-01 Serf collects debris. 01267_ ALERT: Hostiles spotted, dispatching reinforcements to Terminal S002. 01268_ Connecting with Terminal... >>Prototypes Downloading prototype IDs... Rocket Array Hpw. Electrolaser 01268_ W-25 Informer sends out distress signal. 01276_ O-16 Technician: "IFF HANDSHAKE FAILED. SECURING TERMINAL." 01283_ ALERT: Hostiles spotted, dispatching reinforcements to Terminal S005. Map ----- +----------------------------------------------------+ | ??????????????????????????????????????????????# | | ??????????????????????????????????????????????# ^ | | ??????????????????????????????????????????????# ^ | | ??????????????????????????????????????????????# | | ??????????????????????????????????????????????# | | ??????????????????????????????????????????????# | | ??????????????????????????????????????????????# | | ??????????????????????????????????????????????# | | ??????????????????????????????????????????????# | | ???????????????????????????????????? ?????????# | | ???????????????????????????????????? ?????????# | | ???????????????????????????????????? ?????????# | | ???????????????????????????????????? ?????????# | | ???????????????????????????????????? +????????# | | ???????????????????????????????????? #????????# | | ???????????????????????????????????# #????????# | | ??????????????????????????????###### #????????# | | ?????????????????????????????? ! ## #????????# | | ????????????????????????????# T ##/########## | | ????????????????????????????# # # | | ????????????????????????????# """ # # | | ????????????????????????????# """ # """ """ # | | ????????????????????????????? """ # """ """ / | | ??????????????????????????????? # """ """ # | | ?????????????????# ############+# ## | | ???????????? Tka @ /m ## | | ?????????????????# ########## #######"T"#### | | ??????????????????????????????# #?????#####??# # | | ??????????????????????????????# #????????????# # | | ??????????????????????????????# #????????????# # | | ??????????????????????????????# #????????????# # | | ??????????????????????????????# #????????#####+# | | ??????????????????????????????+ #????????# [%! | | ??????????????????????????????# #????????## ! | | ??????????????????????????????# #?????????# | | ??????????????????????????????# #?????????#""" | | ??????????????????????????????# #?????????#""" ! | | ??????????????????????????????# #?????????#""" ! | | ??????????????????????????????# #?????????# ! | | ??????????????????????????????? +?????????#""" ] | | ??????????????????????????????? ??????????#""" | | ????????????????????????????????????????????#""" | | ????????????????????????????????????????????? | | ??????????????????????????????????????????????#### | | ?????????????????????????????????????????????????? | | ?????????????????????????????????????????????????? | | ?????????????????????????????????????????????????? | | ?????????????????????????????????????????????????? | | ?????????????????????????????????????????????????? | | ?????????????????????????????????????????????????? | +----------------------------------------------------+ Best States ------------- Heat Dissipation 55 Energy Generation 19 Energy Capacity 400 Matter Stores 300 Matter Capacity 300 Sight Range 16 Terrain Scan Density 10 Base Temperature (-) 100 Propulsion Shielding 33 Weapon Shielding 66 Evasion (%) 44 Item Schematics ----------------- Arm. Wheel | -9/Materials | Scanalyzed Ion Engine | -9/Materials | Scanalyzed Beam Rifle | -9/Materials | Scanalyzed Spear | -8/Materials | Scanalyzed Imp. Heat Sink | -8/Materials | Scanalyzed Minigun | -8/Materials | Scanalyzed Robot Schematics ------------------ None Fabricated ------------ Nothing Alien Tech Used ----------------- None Achievements -------------- Brute Force Challenges ------------ None Game ------ Seed SigixModifiedManipulator Manual? 0 Play Time 00:23:28 Cumulative 16.0 hours Start 2019.10.23 @ 23:57:52 End 2019.10.24 @ 00:27:41 Sessions 1 Manual Loads 0 Difficulty Rogue Special Mode None Game No. 20 Rogue 20 Adventurer 0 Explorer 0 Win Type - Total 0 Types 0/0/0/0/0/0/0 Lore% 22 Gallery% 27 Achievement% 27 Wizard Run 0 Options --------- ASCII 0 Keyboard 0 Movement Numpad Keybinds 0 Fullscreen 1 Font 16/Terminus Map View 76x50 Tactical HUD 1 Map Filters NONE Filters NONE Steam 1 RUN: 41b45f09-ec25-4ff7-867a-a1d1a5adf3dd